[Event "Live Chess"]
[Site "Chess.com"]
[Date "2010.12.14"]
[Round "-"]
[White "dantime13"]
[Black "hipposcottimus"]
[Result "0-1"]
[CurrentPosition "8/6k1/6pp/4R3/5R2/1r5P/6K1/8 w - -"]
[Timezone "UTC"]
[ECO "C41"]
[ECOUrl "https://www.chess.com/openings/Philidor-Defense"]
[UTCDate "2010.12.14"]
[UTCTime "11:43:04"]
[WhiteElo "1645"]
[BlackElo "1629"]
[TimeControl "60"]
[Termination "hipposcottimus won on time"]
[StartTime "11:43:04"]
[EndDate "2010.12.14"]
[EndTime "11:45:27"]
[Link "https://www.chess.com/game/live/77182377"]

1. e4 {[%clk 0:01:00]} 1... e5 {[%clk 0:01:00]} 2. Nf3 {[%clk 0:00:59.4]} 2... d6 {[%clk 0:00:58.7]} 3. c3 {[%clk 0:00:58.9]} 3... Bg4 {[%clk 0:00:58.3]} 4. d4 {[%clk 0:00:58.1]} 4... Bxf3 {[%clk 0:00:58]} 5. Qxf3 {[%clk 0:00:57.4]} 5... exd4 {[%clk 0:00:57.5]} 6. cxd4 {[%clk 0:00:57.4]} 6... Nc6 {[%clk 0:00:54.6]} 7. d5 {[%clk 0:00:57.4]} 7... Ne5 {[%clk 0:00:53.5]} 8. Qe3 {[%clk 0:00:56.3]} 8... Nf6 {[%clk 0:00:53.2]} 9. f4 {[%clk 0:00:55.7]} 9... Be7 {[%clk 0:00:52.9]} 10. fxe5 {[%clk 0:00:54.9]} 10... dxe5 {[%clk 0:00:52.6]} 11. g3 {[%clk 0:00:52]} 11... O-O {[%clk 0:00:52.3]} 12. Bb5 {[%clk 0:00:50.5]} 12... c6 {[%clk 0:00:51.7]} 13. Bc4 {[%clk 0:00:49.1]} 13... cxd5 {[%clk 0:00:50.4]} 14. exd5 {[%clk 0:00:48.4]} 14... Bb4+ {[%clk 0:00:48.8]} 15. Bd2 {[%clk 0:00:46.2]} 15... Nxd5 {[%clk 0:00:46.9]} 16. Bxd5 {[%clk 0:00:42]} 16... Bxd2+ {[%clk 0:00:45.6]} 17. Qxd2 {[%clk 0:00:38.7]} 17... Rc8 {[%clk 0:00:43.5]} 18. Bxb7 {[%clk 0:00:37.1]} 18... Qxd2+ {[%clk 0:00:37.9]} 19. Nxd2 {[%clk 0:00:34.2]} 19... Rfd8 {[%clk 0:00:37.6]} 20. Bxc8 {[%clk 0:00:32.1]} 20... Rxc8 {[%clk 0:00:37.4]} 21. Rd1 {[%clk 0:00:31.2]} 21... Rb8 {[%clk 0:00:36.3]} 22. O-O {[%clk 0:00:30.3]} 22... Rxb2 {[%clk 0:00:35.6]} 23. Rf2 {[%clk 0:00:29.2]} 23... f6 {[%clk 0:00:35.1]} 24. Rdf1 {[%clk 0:00:28.4]} 24... Rxa2 {[%clk 0:00:33.7]} 25. Nc4 {[%clk 0:00:27.3]} 25... Ra4 {[%clk 0:00:32.8]} 26. Nd6 {[%clk 0:00:26.1]} 26... Rg4 {[%clk 0:00:31.2]} 27. h3 {[%clk 0:00:24.8]} 27... Rxg3+ {[%clk 0:00:29.2]} 28. Rg2 {[%clk 0:00:24.4]} 28... Re3 {[%clk 0:00:27.8]} 29. Nb7 {[%clk 0:00:22.7]} 29... Kf7 {[%clk 0:00:26.1]} 30. Nc5 {[%clk 0:00:21.9]} 30... a5 {[%clk 0:00:25.1]} 31. Na4 {[%clk 0:00:21.2]} 31... Re4 {[%clk 0:00:24]} 32. Re1 {[%clk 0:00:19.9]} 32... Rxa4 {[%clk 0:00:22.8]} 33. Rc1 {[%clk 0:00:18]} 33... Rb4 {[%clk 0:00:21.6]} 34. Rc7+ {[%clk 0:00:16.7]} 34... Ke6 {[%clk 0:00:21.3]} 35. Ra7 {[%clk 0:00:15.9]} 35... a4 {[%clk 0:00:20]} 36. Ra6+ {[%clk 0:00:14.5]} 36... Kf7 {[%clk 0:00:18.2]} 37. Ra7+ {[%clk 0:00:14.5]} 37... Ke6 {[%clk 0:00:17.4]} 38. Rd2 {[%clk 0:00:14]} 38... a3 {[%clk 0:00:16.4]} 39. Ra6+ {[%clk 0:00:12.6]} 39... Kf5 {[%clk 0:00:14.8]} 40. Rf2+ {[%clk 0:00:09.4]} 40... Ke4 {[%clk 0:00:12.9]} 41. Rxa3 {[%clk 0:00:08.9]} 41... Kd5 {[%clk 0:00:10.7]} 42. Raa2 {[%clk 0:00:08.3]} 42... Ke6 {[%clk 0:00:10]} 43. Rfd2 {[%clk 0:00:07.4]} 43... g6 {[%clk 0:00:09.5]} 44. Ra6+ {[%clk 0:00:05.9]} 44... Kf5 {[%clk 0:00:08.1]} 45. Rf2+ {[%clk 0:00:05.2]} 45... Kg5 {[%clk 0:00:07.7]} 46. Raxf6 {[%clk 0:00:03.7]} 46... Kh6 {[%clk 0:00:07.3]} 47. Re6 {[%clk 0:00:02.4]} 47... Rb1+ {[%clk 0:00:06.7]} 48. Kg2 {[%clk 0:00:00.7]} 48... Rb3 {[%clk 0:00:06]} 49. Rxe5 {[%clk 0:00:00.7]} 49... Kg7 {[%clk 0:00:04.1]} 50. Rf4 {[%clk 0:00:00.7]} 50... h6 {[%clk 0:00:02]} 0-1

[Event "Live Chess"]
[Site "Chess.com"]
[Date "2010.12.14"]
[Round "-"]
[White "hipposcottimus"]
[Black "dantime13"]
[Result "1-0"]
[CurrentPosition "8/8/4R3/p7/1P3P2/1P5P/6PK/4Qk2 b - -"]
[Timezone "UTC"]
[ECO "B10"]
[ECOUrl "https://www.chess.com/openings/Caro-Kann-Defense-Accelerated-Panov-Attack"]
[UTCDate "2010.12.14"]
[UTCTime "11:40:34"]
[WhiteElo "1620"]
[BlackElo "1654"]
[TimeControl "60"]
[Termination "hipposcottimus won by checkmate"]
[StartTime "11:40:34"]
[EndDate "2010.12.14"]
[EndTime "11:42:45"]
[Link "https://www.chess.com/game/live/77181892"]

1. e4 {[%clk 0:01:00]} 1... c6 {[%clk 0:01:00]} 2. c4 {[%clk 0:00:57]} 2... b5 {[%clk 0:01:00]} 3. cxb5 {[%clk 0:00:56.1]} 3... cxb5 {[%clk 0:00:59.5]} 4. Bxb5 {[%clk 0:00:55.4]} 4... a6 {[%clk 0:00:59.5]} 5. Ba4 {[%clk 0:00:54.6]} 5... Bb7 {[%clk 0:00:59.5]} 6. d3 {[%clk 0:00:52.9]} 6... g6 {[%clk 0:00:59.1]} 7. Nf3 {[%clk 0:00:52.2]} 7... Bg7 {[%clk 0:00:58.8]} 8. O-O {[%clk 0:00:51.6]} 8... Nf6 {[%clk 0:00:56.3]} 9. Nc3 {[%clk 0:00:50.6]} 9... O-O {[%clk 0:00:55.4]} 10. e5 {[%clk 0:00:50]} 10... Nd5 {[%clk 0:00:53.4]} 11. Nxd5 {[%clk 0:00:48.5]} 11... Bxd5 {[%clk 0:00:52.9]} 12. d4 {[%clk 0:00:47.7]} 12... d6 {[%clk 0:00:51.5]} 13. Bb3 {[%clk 0:00:45.4]} 13... Bxb3 {[%clk 0:00:49.9]} 14. axb3 {[%clk 0:00:45.2]} 14... dxe5 {[%clk 0:00:49.2]} 15. Ra4 {[%clk 0:00:44.9]} 15... exd4 {[%clk 0:00:46.7]} 16. Nxd4 {[%clk 0:00:39.9]} 16... Bxd4 {[%clk 0:00:43.1]} 17. Rxd4 {[%clk 0:00:39.5]} 17... Qb6 {[%clk 0:00:41.6]} 18. Kh1 {[%clk 0:00:35.4]} 18... Nc6 {[%clk 0:00:40.6]} 19. Rd2 {[%clk 0:00:33.8]} 19... Rad8 {[%clk 0:00:39.1]} 20. Re1 {[%clk 0:00:30.9]} 20... Rxd2 {[%clk 0:00:37.5]} 21. Qxd2 {[%clk 0:00:30.5]} 21... Rd8 {[%clk 0:00:34]} 22. Qe2 {[%clk 0:00:30.1]} 22... Nd4 {[%clk 0:00:32.2]} 23. Qe3 {[%clk 0:00:26.4]} 23... Kh8 {[%clk 0:00:29.7]} 24. b4 {[%clk 0:00:24.2]} 24... Rd7 {[%clk 0:00:28.8]} 25. b3 {[%clk 0:00:23.4]} 25... Rd6 {[%clk 0:00:27.4]} 26. Bb2 {[%clk 0:00:22.6]} 26... Re6 {[%clk 0:00:25.7]} 27. Bxd4+ {[%clk 0:00:17.3]} 27... Qxd4 {[%clk 0:00:21.6]} 28. Qxd4+ {[%clk 0:00:16.2]} 28... f6 {[%clk 0:00:18.4]} 29. Rxe6 {[%clk 0:00:15.9]} 29... Kg7 {[%clk 0:00:16.4]} 30. Qd8 {[%clk 0:00:15.6]} 30... Kh6 {[%clk 0:00:15.7]} 31. Qxe7 {[%clk 0:00:15.1]} 31... Kg5 {[%clk 0:00:14.2]} 32. Qxf6+ {[%clk 0:00:14.9]} 32... Kh6 {[%clk 0:00:13.1]} 33. Qf8+ {[%clk 0:00:14.4]} 33... Kh5 {[%clk 0:00:12.5]} 34. f4 {[%clk 0:00:12.7]} 34... Kg4 {[%clk 0:00:12]} 35. h3+ {[%clk 0:00:10]} 35... Kg3 {[%clk 0:00:10.9]} 36. Qg7 {[%clk 0:00:07.7]} 36... Kf2 {[%clk 0:00:10.9]} 37. Qxh7 {[%clk 0:00:07.4]} 37... Kf1 {[%clk 0:00:08.7]} 38. Qxg6 {[%clk 0:00:07.1]} 38... Kf2 {[%clk 0:00:07.7]} 39. Kh2 {[%clk 0:00:06.8]} 39... Kf1 {[%clk 0:00:07.1]} 40. Qg3 {[%clk 0:00:06.4]} 40... a5 {[%clk 0:00:03.7]} 41. Qe1# {[%clk 0:00:06]} 1-0

[Event "Live Chess"]
[Site "Chess.com"]
[Date "2010.12.14"]
[Round "-"]
[White "dantime13"]
[Black "hipposcottimus"]
[Result "1-0"]
[CurrentPosition "5rk1/pp4pp/2p1P3/8/N7/1P4P1/PB1P1bQ1/RN1K4 b - -"]
[Timezone "UTC"]
[ECO "C44"]
[ECOUrl "https://www.chess.com/openings/Ponziani-Opening"]
[UTCDate "2010.12.14"]
[UTCTime "11:38:21"]
[WhiteElo "1663"]
[BlackElo "1611"]
[TimeControl "60"]
[Termination "dantime13 won on time"]
[StartTime "11:38:21"]
[EndDate "2010.12.14"]
[EndTime "11:40:18"]
[Link "https://www.chess.com/game/live/77181362"]

1. e4 {[%clk 0:01:00]} 1... e5 {[%clk 0:01:00]} 2. Nf3 {[%clk 0:00:59.2]} 2... Nc6 {[%clk 0:00:59.7]} 3. c3 {[%clk 0:00:58.7]} 3... Nd4 {[%clk 0:00:59.4]} 4. cxd4 {[%clk 0:00:57.2]} 4... exd4 {[%clk 0:00:59.1]} 5. Nxd4 {[%clk 0:00:56.6]} 5... d6 {[%clk 0:00:58.9]} 6. Nb5 {[%clk 0:00:54.3]} 6... c6 {[%clk 0:00:58]} 7. N5c3 {[%clk 0:00:52.6]} 7... Nf6 {[%clk 0:00:55.8]} 8. f3 {[%clk 0:00:52]} 8... d5 {[%clk 0:00:54.9]} 9. e5 {[%clk 0:00:50.5]} 9... Qe7 {[%clk 0:00:54.5]} 10. f4 {[%clk 0:00:49.6]} 10... d4 {[%clk 0:00:53.3]} 11. Na4 {[%clk 0:00:46.9]} 11... Nd5 {[%clk 0:00:52.6]} 12. b3 {[%clk 0:00:45.9]} 12... Nxf4 {[%clk 0:00:51.8]} 13. Qe2 {[%clk 0:00:39.2]} 13... d3 {[%clk 0:00:50.9]} 14. Qe4 {[%clk 0:00:37.7]} 14... Qg5 {[%clk 0:00:39.3]} 15. g3 {[%clk 0:00:34.4]} 15... Bf5 {[%clk 0:00:38.1]} 16. Qc4 {[%clk 0:00:30]} 16... Nh3 {[%clk 0:00:31]} 17. Bxd3 {[%clk 0:00:28]} 17... Be7 {[%clk 0:00:21.4]} 18. Bxf5 {[%clk 0:00:26]} 18... Qxf5 {[%clk 0:00:20.5]} 19. Rf1 {[%clk 0:00:25.3]} 19... Qg4 {[%clk 0:00:19.4]} 20. Qxg4 {[%clk 0:00:22.1]} 20... O-O {[%clk 0:00:17.8]} 21. Qxh3 {[%clk 0:00:20.8]} 21... f5 {[%clk 0:00:16.8]} 22. g4 {[%clk 0:00:18.8]} 22... fxg4 {[%clk 0:00:15.5]} 23. Qg2 {[%clk 0:00:17.3]} 23... Bb4 {[%clk 0:00:11.8]} 24. Rxf8+ {[%clk 0:00:15.7]} 24... Rxf8 {[%clk 0:00:11.3]} 25. Bb2 {[%clk 0:00:13.9]} 25... Bc5 {[%clk 0:00:10.6]} 26. e6 {[%clk 0:00:12.8]} 26... Bf2+ {[%clk 0:00:09.5]} 27. Kd1 {[%clk 0:00:12]} 27... g3 {[%clk 0:00:07.1]} 28. hxg3 {[%clk 0:00:10.4]} 1-0

[Event "Live Chess"]
[Site "Chess.com"]
[Date "2010.12.14"]
[Round "-"]
[White "hipposcottimus"]
[Black "dantime13"]
[Result "0-1"]
[CurrentPosition "r1k2n2/pb5p/3P4/1p6/8/2N3Q1/PP3K1P/R1B1q2q w - -"]
[Timezone "UTC"]
[ECO "B12"]
[ECOUrl "https://www.chess.com/openings/Caro-Kann-Defense-2.d4"]
[UTCDate "2010.12.14"]
[UTCTime "11:36:04"]
[WhiteElo "1618"]
[BlackElo "1656"]
[TimeControl "60"]
[Termination "dantime13 won by checkmate"]
[StartTime "11:36:04"]
[EndDate "2010.12.14"]
[EndTime "11:37:57"]
[Link "https://www.chess.com/game/live/77180949"]

1. e4 {[%clk 0:01:00]} 1... c6 {[%clk 0:01:00]} 2. d4 {[%clk 0:00:59]} 2... b5 {[%clk 0:01:00]} 3. e5 {[%clk 0:00:58.6]} 3... Bb7 {[%clk 0:01:00]} 4. f4 {[%clk 0:00:58.1]} 4... Qc7 {[%clk 0:01:00]} 5. Nf3 {[%clk 0:00:57.3]} 5... d6 {[%clk 0:01:00]} 6. c4 {[%clk 0:00:56.7]} 6... dxe5 {[%clk 0:00:59.4]} 7. d5 {[%clk 0:00:56.1]} 7... cxd5 {[%clk 0:00:58.3]} 8. cxd5 {[%clk 0:00:53.9]} 8... Ba6 {[%clk 0:00:57.3]} 9. fxe5 {[%clk 0:00:51.9]} 9... Nd7 {[%clk 0:00:56.4]} 10. d6 {[%clk 0:00:50.4]} 10... Qb7 {[%clk 0:00:52.7]} 11. Be2 {[%clk 0:00:49.3]} 11... f6 {[%clk 0:00:50.5]} 12. O-O {[%clk 0:00:48.3]} 12... fxe5 {[%clk 0:00:49.5]} 13. Qb3 {[%clk 0:00:45.6]} 13... e4 {[%clk 0:00:47]} 14. Ng5 {[%clk 0:00:44.6]} 14... Ngf6 {[%clk 0:00:45]} 15. Qf7+ {[%clk 0:00:41.7]} 15... Kd8 {[%clk 0:00:44.4]} 16. Ne6+ {[%clk 0:00:39.8]} 16... Kc8 {[%clk 0:00:41.7]} 17. Nxf8 {[%clk 0:00:35.8]} 17... Rxf8 {[%clk 0:00:39.8]} 18. Qxe7 {[%clk 0:00:35.4]} 18... Qb6+ {[%clk 0:00:37.2]} 19. Kh1 {[%clk 0:00:32.1]} 19... Bb7 {[%clk 0:00:35.4]} 20. Nc3 {[%clk 0:00:30.7]} 20... e3 {[%clk 0:00:32.8]} 21. Rxf6 {[%clk 0:00:28.2]} 21... Rxf6 {[%clk 0:00:29.6]} 22. Qxg7 {[%clk 0:00:26.6]} 22... Qc6 {[%clk 0:00:27.9]} 23. Bf3 {[%clk 0:00:24.4]} 23... Rxf3 {[%clk 0:00:25.3]} 24. Qg8+ {[%clk 0:00:23]} 24... Nf8 {[%clk 0:00:19]} 25. gxf3 {[%clk 0:00:21]} 25... Qxf3+ {[%clk 0:00:16.1]} 26. Kg1 {[%clk 0:00:18.7]} 26... e2 {[%clk 0:00:13.4]} 27. Qg3 {[%clk 0:00:13.2]} 27... Qh1+ {[%clk 0:00:11.7]} 28. Kf2 {[%clk 0:00:11.7]} 28... e1=Q# {[%clk 0:00:09.9]} 0-1

[Event "Live Chess"]
[Site "Chess.com"]
[Date "2010.12.14"]
[Round "-"]
[White "dantime13"]
[Black "hipposcottimus"]
[Result "0-1"]
[CurrentPosition "6k1/pp3p1p/2p3p1/3nP1n1/4b3/Q5B1/6KP/8 w - -"]
[Timezone "UTC"]
[ECO "C42"]
[ECOUrl "https://www.chess.com/openings/Petrovs-Defense"]
[UTCDate "2010.12.14"]
[UTCTime "11:33:46"]
[WhiteElo "1649"]
[BlackElo "1625"]
[TimeControl "60"]
[Termination "hipposcottimus won on time"]
[StartTime "11:33:46"]
[EndDate "2010.12.14"]
[EndTime "11:35:52"]
[Link "https://www.chess.com/game/live/77180424"]

1. e4 {[%clk 0:01:00]} 1... e5 {[%clk 0:01:00]} 2. Nf3 {[%clk 0:00:59.5]} 2... Nf6 {[%clk 0:00:56.9]} 3. c3 {[%clk 0:00:59]} 3... d6 {[%clk 0:00:56.3]} 4. Qe2 {[%clk 0:00:59]} 4... d5 {[%clk 0:00:55.1]} 5. d4 {[%clk 0:00:58.6]} 5... dxe4 {[%clk 0:00:52.9]} 6. dxe5 {[%clk 0:00:57.9]} 6... exf3 {[%clk 0:00:51]} 7. gxf3 {[%clk 0:00:57.4]} 7... Nd5 {[%clk 0:00:48.8]} 8. c4 {[%clk 0:00:56.2]} 8... Nb6 {[%clk 0:00:45.8]} 9. Bg2 {[%clk 0:00:54.2]} 9... Bb4+ {[%clk 0:00:45.4]} 10. Nc3 {[%clk 0:00:52.8]} 10... Bxc3+ {[%clk 0:00:44.6]} 11. bxc3 {[%clk 0:00:52.1]} 11... O-O {[%clk 0:00:44.3]} 12. Bf4 {[%clk 0:00:50.8]} 12... Re8 {[%clk 0:00:43.8]} 13. Rd1 {[%clk 0:00:49.9]} 13... c6 {[%clk 0:00:41.5]} 14. Rxd8 {[%clk 0:00:48.3]} 14... Rxd8 {[%clk 0:00:41.3]} 15. O-O {[%clk 0:00:46]} 15... Re8 {[%clk 0:00:41]} 16. Re1 {[%clk 0:00:45.1]} 16... Be6 {[%clk 0:00:40.6]} 17. Bg3 {[%clk 0:00:41.2]} 17... Bxc4 {[%clk 0:00:40.3]} 18. Qd2 {[%clk 0:00:38.5]} 18... N8d7 {[%clk 0:00:40]} 19. f4 {[%clk 0:00:37.4]} 19... Nc5 {[%clk 0:00:38.1]} 20. f3 {[%clk 0:00:33]} 20... Nd3 {[%clk 0:00:37.6]} 21. Rd1 {[%clk 0:00:31.5]} 21... Rad8 {[%clk 0:00:36.2]} 22. Qc2 {[%clk 0:00:29.4]} 22... Nb4 {[%clk 0:00:33.7]} 23. Qb2 {[%clk 0:00:27.6]} 23... Nxa2 {[%clk 0:00:31.3]} 24. Rxd8 {[%clk 0:00:24.7]} 24... Rxd8 {[%clk 0:00:31]} 25. Bf1 {[%clk 0:00:23.3]} 25... Rd1 {[%clk 0:00:27.9]} 26. Kg2 {[%clk 0:00:16.5]} 26... Bxf1+ {[%clk 0:00:25.1]} 27. Kf2 {[%clk 0:00:13.4]} 27... Bc4 {[%clk 0:00:24.7]} 28. Ke3 {[%clk 0:00:10.5]} 28... Rd3+ {[%clk 0:00:23]} 29. Ke4 {[%clk 0:00:09.4]} 29... Nxc3+ {[%clk 0:00:22.4]} 30. Kf5 {[%clk 0:00:06.4]} 30... g6+ {[%clk 0:00:20.7]} 31. Kg4 {[%clk 0:00:06.4]} 31... Be6+ {[%clk 0:00:18.5]} 32. f5 {[%clk 0:00:04.2]} 32... Bxf5+ {[%clk 0:00:17.7]} 33. Kf4 {[%clk 0:00:04.2]} 33... Rxf3+ {[%clk 0:00:15.9]} 34. Kxf3 {[%clk 0:00:02.8]} 34... Ne4 {[%clk 0:00:14.5]} 35. Qc3 {[%clk 0:00:02.8]} 35... Nd5 {[%clk 0:00:13.5]} 36. Qa3 {[%clk 0:00:00.6]} 36... Ng5+ {[%clk 0:00:13.2]} 37. Kg2 {[%clk 0:00:00.3]} 37... Be4+ {[%clk 0:00:12.6]} 0-1

[Event "Live Chess"]
[Site "Chess.com"]
[Date "2010.12.14"]
[Round "-"]
[White "hipposcottimus"]
[Black "dantime13"]
[Result "1-0"]
[CurrentPosition "2b5/3k3p/p2r2p1/1pQ5/8/8/P1R3PP/2K5 b - -"]
[Timezone "UTC"]
[ECO "B10"]
[ECOUrl "https://www.chess.com/openings/Caro-Kann-Defense"]
[UTCDate "2010.12.14"]
[UTCTime "11:31:12"]
[WhiteElo "1616"]
[BlackElo "1658"]
[TimeControl "60"]
[Termination "hipposcottimus won on time"]
[StartTime "11:31:12"]
[EndDate "2010.12.14"]
[EndTime "11:33:28"]
[Link "https://www.chess.com/game/live/77179901"]

1. e4 {[%clk 0:01:00]} 1... c6 {[%clk 0:01:00]} 2. e5 {[%clk 0:00:58.2]} 2... b5 {[%clk 0:01:00]} 3. d4 {[%clk 0:00:56.4]} 3... a6 {[%clk 0:01:00]} 4. c4 {[%clk 0:00:54.9]} 4... Bb7 {[%clk 0:01:00]} 5. c5 {[%clk 0:00:53.8]} 5... g6 {[%clk 0:00:58.2]} 6. f4 {[%clk 0:00:52.4]} 6... f6 {[%clk 0:00:57.7]} 7. Nf3 {[%clk 0:00:50.9]} 7... fxe5 {[%clk 0:00:56.7]} 8. fxe5 {[%clk 0:00:50.6]} 8... Bg7 {[%clk 0:00:55.9]} 9. Be2 {[%clk 0:00:47.8]} 9... e6 {[%clk 0:00:55.4]} 10. O-O {[%clk 0:00:46.8]} 10... d5 {[%clk 0:00:54.7]} 11. Bg5 {[%clk 0:00:45.7]} 11... Ne7 {[%clk 0:00:53.7]} 12. Bf6 {[%clk 0:00:44.6]} 12... Bxf6 {[%clk 0:00:52.5]} 13. exf6 {[%clk 0:00:44.3]} 13... Nf5 {[%clk 0:00:50.8]} 14. Ne5 {[%clk 0:00:43.6]} 14... Ne3 {[%clk 0:00:50]} 15. Qd3 {[%clk 0:00:39.5]} 15... Nxf1 {[%clk 0:00:48.7]} 16. Bxf1 {[%clk 0:00:39.3]} 16... Rf8 {[%clk 0:00:47.8]} 17. Qf3 {[%clk 0:00:38]} 17... Rxf6 {[%clk 0:00:45.5]} 18. Qg3 {[%clk 0:00:37.5]} 18... Qe7 {[%clk 0:00:40.3]} 19. Nc3 {[%clk 0:00:36]} 19... Nd7 {[%clk 0:00:38.9]} 20. Ne2 {[%clk 0:00:34.9]} 20... Nxe5 {[%clk 0:00:38.1]} 21. dxe5 {[%clk 0:00:33.6]} 21... Rf5 {[%clk 0:00:35]} 22. Nf4 {[%clk 0:00:32.5]} 22... d4 {[%clk 0:00:33.9]} 23. Bd3 {[%clk 0:00:30.1]} 23... Rf8 {[%clk 0:00:31.7]} 24. Qf3 {[%clk 0:00:29.5]} 24... Qxc5 {[%clk 0:00:30.4]} 25. Qg3 {[%clk 0:00:28.6]} 25... Rd8 {[%clk 0:00:28]} 26. Be4 {[%clk 0:00:27.5]} 26... d3+ {[%clk 0:00:25.8]} 27. Kf1 {[%clk 0:00:24.7]} 27... Qc4 {[%clk 0:00:22.8]} 28. Rd1 {[%clk 0:00:23.6]} 28... d2+ {[%clk 0:00:21.2]} 29. Kf2 {[%clk 0:00:22.1]} 29... Qxe4 {[%clk 0:00:20.5]} 30. Kg1 {[%clk 0:00:20.5]} 30... Qd4+ {[%clk 0:00:19]} 31. Kf1 {[%clk 0:00:18.9]} 31... Qxb2 {[%clk 0:00:18.1]} 32. Ke2 {[%clk 0:00:16.1]} 32... Qc2 {[%clk 0:00:17]} 33. Nxe6 {[%clk 0:00:15]} 33... Rf7 {[%clk 0:00:12.8]} 34. Nxd8 {[%clk 0:00:13.8]} 34... Kxd8 {[%clk 0:00:12.2]} 35. e6 {[%clk 0:00:13.5]} 35... Re7 {[%clk 0:00:11.3]} 36. Qb8+ {[%clk 0:00:12.5]} 36... Bc8 {[%clk 0:00:09.3]} 37. Rxd2+ {[%clk 0:00:11.5]} 37... Ke8 {[%clk 0:00:05.6]} 38. Rxc2 {[%clk 0:00:10.5]} 38... Rxe6+ {[%clk 0:00:04]} 39. Kd2 {[%clk 0:00:08.9]} 39... Kd7 {[%clk 0:00:02.7]} 40. Kc1 {[%clk 0:00:08.5]} 40... Rd6 {[%clk 0:00:00.5]} 41. Qb6 {[%clk 0:00:06.7]} 41... c5 {[%clk 0:00:00.5]} 42. Qxc5 {[%clk 0:00:05.2]} 1-0

[Event "Live Chess"]
[Site "Chess.com"]
[Date "2010.12.14"]
[Round "-"]
[White "dantime13"]
[Black "hipposcottimus"]
[Result "1-0"]
[CurrentPosition "5r2/1Rk4p/2p5/3p1P2/8/7r/P4P1P/1R5K b - -"]
[Timezone "UTC"]
[ECO "C44"]
[ECOUrl "https://www.chess.com/openings/Ponziani-Opening-Ponziani-Countergambit"]
[UTCDate "2010.12.14"]
[UTCTime "11:28:37"]
[WhiteElo "1667"]
[BlackElo "1607"]
[TimeControl "60"]
[Termination "dantime13 won on time"]
[StartTime "11:28:37"]
[EndDate "2010.12.14"]
[EndTime "11:30:50"]
[Link "https://www.chess.com/game/live/77179363"]

1. e4 {[%clk 0:01:00]} 1... e5 {[%clk 0:01:00]} 2. Nf3 {[%clk 0:00:59.2]} 2... Nc6 {[%clk 0:00:57.4]} 3. c3 {[%clk 0:00:58.8]} 3... f5 {[%clk 0:00:56.8]} 4. exf5 {[%clk 0:00:57.6]} 4... d5 {[%clk 0:00:55.8]} 5. g4 {[%clk 0:00:55.9]} 5... e4 {[%clk 0:00:54.2]} 6. Nd4 {[%clk 0:00:54.8]} 6... Nxd4 {[%clk 0:00:52.7]} 7. cxd4 {[%clk 0:00:54.8]} 7... g6 {[%clk 0:00:52.3]} 8. Bh3 {[%clk 0:00:52.3]} 8... gxf5 {[%clk 0:00:51.4]} 9. gxf5 {[%clk 0:00:51.7]} 9... Bd7 {[%clk 0:00:50.6]} 10. Qh5+ {[%clk 0:00:50.7]} 10... Ke7 {[%clk 0:00:45.8]} 11. d3 {[%clk 0:00:47.3]} 11... Nf6 {[%clk 0:00:44.4]} 12. Bg5 {[%clk 0:00:45.4]} 12... Bg7 {[%clk 0:00:38.2]} 13. Bxf6+ {[%clk 0:00:40.1]} 13... Bxf6 {[%clk 0:00:37.8]} 14. Qe2 {[%clk 0:00:37.1]} 14... Qf8 {[%clk 0:00:34.8]} 15. Rg1 {[%clk 0:00:36.2]} 15... Kd8 {[%clk 0:00:34]} 16. Nd2 {[%clk 0:00:34.2]} 16... c6 {[%clk 0:00:31]} 17. Rc1 {[%clk 0:00:32.5]} 17... Kc7 {[%clk 0:00:30.2]} 18. Nb3 {[%clk 0:00:31.8]} 18... exd3 {[%clk 0:00:29.5]} 19. Qxd3 {[%clk 0:00:29.8]} 19... Re8+ {[%clk 0:00:29.2]} 20. Kf1 {[%clk 0:00:27]} 20... Re4 {[%clk 0:00:24.5]} 21. Nc5 {[%clk 0:00:25.8]} 21... Rxd4 {[%clk 0:00:21.9]} 22. Qg3+ {[%clk 0:00:21]} 22... Kb6 {[%clk 0:00:16.7]} 23. Nxd7+ {[%clk 0:00:20]} 23... Ka6 {[%clk 0:00:13.8]} 24. Nxf8 {[%clk 0:00:20]} 24... Rxf8 {[%clk 0:00:11.7]} 25. Qa3+ {[%clk 0:00:19.3]} 25... Kb6 {[%clk 0:00:10.1]} 26. Kg2 {[%clk 0:00:15.7]} 26... Kc7 {[%clk 0:00:09.7]} 27. Kh1 {[%clk 0:00:14.9]} 27... Rh4 {[%clk 0:00:08.8]} 28. Rg3 {[%clk 0:00:12.2]} 28... Rh5 {[%clk 0:00:06.9]} 29. Qxa7 {[%clk 0:00:11.2]} 29... Be5 {[%clk 0:00:06]} 30. Rg2 {[%clk 0:00:08.6]} 30... Bxb2 {[%clk 0:00:03.9]} 31. Rb1 {[%clk 0:00:06.8]} 31... Bd4 {[%clk 0:00:02.9]} 32. Rg3 {[%clk 0:00:05.8]} 32... Bxa7 {[%clk 0:00:01.9]} 33. Rgb3 {[%clk 0:00:04.9]} 33... Bb6 {[%clk 0:00:01.5]} 34. Rxb6 {[%clk 0:00:04.1]} 34... Rxh3 {[%clk 0:00:00.8]} 35. Rxb7+ {[%clk 0:00:03.6]} 1-0

[Event "Live Chess"]
[Site "Chess.com"]
[Date "2010.12.14"]
[Round "-"]
[White "hipposcottimus"]
[Black "dantime13"]
[Result "1-0"]
[CurrentPosition "2r1r1k1/1b1q1pQp/6p1/3p4/4p3/1P6/PBB2PPP/R3R1K1 b - -"]
[Timezone "UTC"]
[ECO "B12"]
[ECOUrl "https://www.chess.com/openings/Caro-Kann-Defense-2.d4"]
[UTCDate "2010.12.14"]
[UTCTime "11:27:13"]
[WhiteElo "1614"]
[BlackElo "1660"]
[TimeControl "60"]
[Termination "hipposcottimus won by checkmate"]
[StartTime "11:27:13"]
[EndDate "2010.12.14"]
[EndTime "11:28:16"]
[Link "https://www.chess.com/game/live/77179068"]

1. e4 {[%clk 0:01:00]} 1... c6 {[%clk 0:01:00]} 2. d4 {[%clk 0:00:59.3]} 2... b5 {[%clk 0:01:00]} 3. d5 {[%clk 0:00:58.6]} 3... a6 {[%clk 0:01:00]} 4. dxc6 {[%clk 0:00:57.5]} 4... Nxc6 {[%clk 0:01:00]} 5. Nf3 {[%clk 0:00:55.6]} 5... Bb7 {[%clk 0:01:00]} 6. c4 {[%clk 0:00:55]} 6... Rc8 {[%clk 0:00:59.3]} 7. cxb5 {[%clk 0:00:53.6]} 7... axb5 {[%clk 0:00:58.9]} 8. Bxb5 {[%clk 0:00:52.3]} 8... d6 {[%clk 0:00:56.6]} 9. Nc3 {[%clk 0:00:52]} 9... e5 {[%clk 0:00:53.7]} 10. Nd5 {[%clk 0:00:49.4]} 10... Ne7 {[%clk 0:00:51.7]} 11. O-O {[%clk 0:00:47.4]} 11... Nxd5 {[%clk 0:00:50.5]} 12. exd5 {[%clk 0:00:46.8]} 12... Qd7 {[%clk 0:00:49.6]} 13. dxc6 {[%clk 0:00:46.1]} 13... Bxc6 {[%clk 0:00:48.5]} 14. Bd3 {[%clk 0:00:45.8]} 14... g6 {[%clk 0:00:44.3]} 15. Re1 {[%clk 0:00:44]} 15... Bg7 {[%clk 0:00:43.3]} 16. Be4 {[%clk 0:00:42.9]} 16... d5 {[%clk 0:00:40.6]} 17. Bc2 {[%clk 0:00:40]} 17... e4 {[%clk 0:00:40]} 18. Nd4 {[%clk 0:00:38.4]} 18... Bxd4 {[%clk 0:00:37.8]} 19. Qxd4 {[%clk 0:00:38]} 19... O-O {[%clk 0:00:36.5]} 20. b3 {[%clk 0:00:35.7]} 20... Rfe8 {[%clk 0:00:35.5]} 21. Bb2 {[%clk 0:00:34.6]} 21... Bb7 {[%clk 0:00:34.8]} 22. Qg7# {[%clk 0:00:33.7]} 1-0